Cogmind - Beta 17 @@@ ROGUE MODE // 2026.08.08 @ 22:33:08 Player: aperiodic Result: Destroyed by H-77 Assassin with Coil Gun Performance ------------- Evolutions (7) 3500 Regions Visited (18) 3600 Robots Destroyed (243) 1215 Value Destroyed (12767) 12767 Prototype IDs (184) 3680 Alien Tech Used (7) 1400 Bonus (34281) 34281 TOTAL SCORE: 60443 Bonus ------- High Alert Combat Kills 3899 Follower Combat Kills 3872 Network Hubs Disabled 400 Delivered SUBCON Basin 2000 Registered with UFD 300 Met Optimus in HQ 500 Met Warlord at Base 500 MAIN.C Attacked Warlord 500 Warlord Defense Kills 1076 Met R17 at Cetus 500 Used Core Reset Matrix 3000 Met R17 at Research 2000 Scanned by Researcher 500 Destroyed Superfortress 15000 Met Optimus at Protoforge 1000 Friendly Fire -766 Cogmind --------- Core Integrity 0/1300 Matter 265/300 Energy 355/1100 System Corruption 36% Temperature Cool (0) Movement Walking (260) Ox2 Location -3/Protoforge Parts ------- > --- POWER (2) -------- Concept Zero-point Core Meta Core > --- PROPULSION (5) --- Experimental VSS Leg > --- UTILITY (12+1) --- High-capacity Storage Unit Concept Chromion Battery Experimental Optical Array Advanced Signal Interpreter Experimental Core Analyzer Concept RG22 Armor Graphene Brace Concept Energy Mantle A0-MCA's Component Scanner (+) > --- WEAPON (2) ------- (None) > --- INVENTORY (20) --- Deep Structural Scanner Experimental Sensor Array Advanced Transmission Jammer Concept Reaction Jets Experimental Cloaking Device Concept Energy Mantle Concept Antimissile System Concept Antimissile System Crosscalibrator Vortex Shotgun (50) Vortex Rail (40) Concept XC Strikerail Concept XC Strikerail CPS Tube (1) Peak State ------------ > --- POWER ------------ Matter Drive Meta Core > --- PROPULSION ------- Centrium Leg Experimental VSS Leg Experimental VSS Leg Experimental VSS Leg Experimental VSS Leg Experimental VSS Leg > --- UTILITY ---------- High-capacity Storage Unit Concept Chromion Battery Advanced Signal Interpreter Advanced Hacking Suite A0-MCA's Component Scanner Wardrone Bay > --- WEAPON ----------- Concept XC Strikerail Sigix Broadsword > --- INVENTORY -------- Myomer Leg Deep Structural Scanner Experimental Sensor Array Experimental Core Analyzer Experimental Armor Integrity Analyzer Experimental Kinecellerator Advanced Transmission Jammer Medium Regenerative Plating Graphene Brace Advanced Remote Force Field Improved Dynamic Insulation System High-powered Transdimensional Reconstructor Supercharged TR Precision Phase Gun Precision Phase Gun Vortex Shotgun Vortex Shotgun Vortex Rail CPS Tube [Rating: 278] Favorites ----------- Power Meta Core Engine Improved Ion Engine Power Core Meta Core Reactor Matter Drive Propulsion Myomer Leg Treads Spiked Treads Leg Myomer Leg Wheel Wheel Hover Unit Gravmag System Flight Unit Xenon Bombardment Thruster Utility High-capacity Storage Unit Device Graphene Brace Storage High-capacity Storage Unit Processor Tech Extrapolator Hackware Improved Hacking Suite Protection Medium Regenerative Plating Weapon Advanced KE Penetrator Energy Gun Advanced Variable Charge Gun Energy Cannon Subdweller Beam Cannon Ballistic Gun Advanced KE Penetrator Ballistic Cannon Concept Miniperforator Launcher Concept Arcsight Missile Launcher Special Weapon CPS Tube Slashing Weapon Makeshift Axe Special Melee Weapon Datajack Build | -11 -10 -10 -10 -7 -7 -5 -5 -5 -5 -4 -4 -4 -4 -4 -4 -3 -3 -3 ------- Run | Yrd Mat Min Sub Rec Scr Fac Upp Upp War Pro Fac Ext Cet Arc Hub Res Qua Frg Slots Evolved 14 | . . . . . . 10 . . . . 2 . . . . 2 . . Power 1 | . . . . . . . . . . . . . . . . 1 . . Propulsion 3 | . . . . . . 2 . . . . . . . . . 1 . . Utility 10 | . . . . . . 8 . . . . 2 . . . . . . . Weapon . | . . . . . . . . . . . . . . . . . . . Parts Attached 179 | 7 9 4 12 . 17 36 . . 21 . 4 7 5 3 . 16 4 34 Power 10 | 1 2 . . . 1 2 . . 1 . . . . . . 1 1 1 Engine 6 | 1 2 . . . 1 2 . . . . . . . . . . . . Core 2 | . . . . . . . . . 1 . . . . . . . . 1 Reactor 2 | . . . . . . . . . . . . . . . . 1 1 . Propulsion 49 | 2 3 1 3 . 7 8 . . 6 . . 1 1 . . 8 . 9 Treads 8 | . 2 . 2 . 1 3 . . . . . . . . . . . . Leg 23 | . . . . . . . . . 4 . . 1 1 . . 8 . 9 Wheel 12 | 2 1 1 1 . 2 5 . . . . . . . . . . . . Hover 3 | . . . . . 2 . . . 1 . . . . . . . . . Flight 3 | . . . . . 2 . . . 1 . . . . . . . . . Utility 75 | 2 2 1 4 . 4 19 . . 10 . 2 6 2 1 . 5 1 16 Device 38 | 1 . 1 1 . 3 10 . . 3 . . 4 1 1 . 2 1 10 Storage 3 | 1 1 . . . . . . . . . . . . . . . . 1 Processor 11 | . . . . . 1 2 . . 3 . 1 . . . . . . 4 Hackware 7 | . . . . . . 2 . . 2 . . . . . . 3 . . Protection 16 | . 1 . 3 . . 5 . . 2 . 1 2 1 . . . . 1 Artifact . | . . . . . . . . . . . . . . . . . . . Weapon 45 | 2 2 2 5 . 5 7 . . 4 . 2 . 2 2 . 2 2 8 Energy Gun 13 | 1 2 2 . . . 2 . . 2 . 1 . . 1 . 1 1 . Energy Cannon 6 | . . . 3 . 2 1 . . . . . . . . . . . . Ballistic Gun 13 | 1 . . . . . 3 . . . . . . 2 1 . . . 6 Ballistic Cannon 1 | . . . . . . . . . . . . . . . . . . 1 Launcher 3 | . . . . . . 1 . . 1 . . . . . . . . 1 Special Weapon 5 | . . . . . 2 . . . 1 . 1 . . . . 1 . . Impact Weapon . | . . . . . . . . . . . . . . . . . . . Slashing Weapon 3 | . . . 2 . . . . . . . . . . . . . 1 . Piercing Weapon . | . . . . . . . . . . . . . . . . . . . Special Melee Weapon 1 | . . . . . 1 . . . . . . . . . . . . . Unidentified Prototypes 17 | . . . . . 1 5 . . 10 . . . . . . . 1 . Corrupted Parts 1 | . . . . . . 1 . . . . . . . . . . . . System Corruption 1 | . . . . . . 1 . . . . . . . . . . . . Parts Lost 43 | . . . 3 . . 12 . . 3 . . . 1 . 3 . 4 17 Power 3 | . . . . . . 2 . . . . . . . . . . . 1 Propulsion 14 | . . . 1 . . 6 . . 1 . . . . . 1 . . 5 Utility 20 | . . . 2 . . 4 . . 1 . . . 1 . 1 . 4 7 Weapon 6 | . . . . . . . . . 1 . . . . . 1 . . 4 Highest Loss Streak 11 | . . . 1 . . 3 . . 1 . . . 1 . 2 . 4 11 To Critical Strikes . | . . . . . . . . . . . . . . . . . . . Average Backups 11 | 3 9 19 4 6 12 17 17 17 13 10 9 10 6 12 12 12 12 17 Power . | . . 1 . . . . . . . . . . . . . . . . Propulsion . | 2 4 5 . . . . . . . . . . . . . . . 2 Utility 5 | . 1 4 1 4 9 11 9 9 5 5 4 5 2 5 6 7 4 9 Weapon 3 | 1 3 8 1 . . 1 4 4 3 3 3 3 2 5 5 4 4 4 Tool/Special . | . . . . . . . . . . . . . . . . . . . Unused Backups 72 | . 2 5 13 . 14 3 . . 5 . 1 . 15 2 1 3 2 6 Power 6 | . . . 1 . 2 . . . . . . . 2 . 1 . . . Propulsion 8 | . 1 2 2 . 2 . . . . . . . 1 . . . . . Utility 35 | . . 1 3 . 5 2 . . 5 . 1 . 8 2 . 3 1 4 Weapon 22 | . 1 2 7 . 5 1 . . . . . . 4 . . . . 2 Tool/Special 1 | . . . . . . . . . . . . . . . . . 1 . Average Slot Usage (%) 90 | . 100 100 98 100 86 84 100 100 90 85 84 85 70 89 89 90 86 90 Engine 4 | . 14 14 14 14 13 3 5 5 2 . . . . . . . . . Core 2 | . . . . . . . . . 2 5 4 4 4 4 4 4 4 7 Treads 7 | . 2 . 26 28 16 12 5 5 2 . . . . . . . . . Leg 11 | . . . . . . . . . 9 20 18 18 18 18 18 20 25 21 Wheel 2 | . 25 28 1 . 8 5 17 17 9 . . . . . . . . . Device 15 | . 10 11 17 . . 18 28 29 20 10 12 13 8 21 21 14 15 17 Storage 5 | . 14 14 2 14 12 5 5 5 5 5 4 4 2 4 4 4 4 5 Processor 15 | . . . . . 9 11 17 17 17 20 21 22 22 22 22 20 17 19 Hackware 1 | . . . . . . 1 5 5 6 10 9 8 1 . . 11 6 3 Protection 6 | . 3 2 6 14 3 10 . . 2 5 4 3 2 9 9 1 3 3 Energy Gun 5 | . 14 26 17 . . 1 10 6 3 . 1 4 . 3 2 7 1 . Energy Cannon 2 | . . . 4 14 7 1 . . . . . . . . . . . . Ballistic Gun 2 | . 13 1 . . . 7 . 3 6 5 3 3 8 4 6 . . 4 Slashing Weapon 1 | . . . 5 14 3 . . . . . . . . . . . 3 1 Special Melee Weapon 1 | . . . . . 7 . . . . . . . . . . . . . Peak Build Rating 278 | 7 12 15 34 34 31 89 82 83 145 138 153 163 204 166 168 183 247 278 Average Rating 115 | 5 7 14 17 26 22 71 81 82 114 137 147 153 160 164 164 171 192 224 On Entrance 97 | . 7 12 15 34 20 30 78 82 83 135 138 150 162 160 165 146 183 247 Avg Prop Armor Cover (%) 9 | . . . 5 . 7 8 11 11 9 . . . . 13 . . . . Naked Turns 129 | . . . . . 129 . . . . . . . . . . . . . Heaviest Build 146 | 12 56 56 61 61 61 79 63 61 93 75 81 93 96 97 98 104 122 146 Greatest Support 164 | 20 40 20 40 40 40 98 36 36 90 90 90 95 100 100 100 160 160 164 Greatest Overweight (x) 32 | . 2 2 2 1 5 8 1 1 9 . . 1 . 32 . 1 . 3 Average Overweight (x) 3 | . 1 2 . 1 2 1 1 1 1 . . . . 26 . . . . Largest Inventory Capacity 20 | 8 20 20 20 20 20 20 20 20 20 20 20 20 20 20 20 20 20 20 Average Capacity 17 | 7 13 20 7 20 18 20 20 20 20 20 20 20 14 20 20 20 20 20 Most Carried 20 | 8 16 20 20 20 20 20 20 20 20 20 20 20 20 20 20 20 20 20 Average Carried 16 | 4 9 19 6 15 13 19 19 20 19 20 19 19 10 19 19 19 19 18 Final Capacity 20 | 8 20 20 20 20 20 20 20 20 20 20 20 20 20 20 20 20 20 20 Final Carried 20 | 8 16 20 20 13 19 20 20 20 20 20 19 20 20 20 19 20 15 14 Scrap Suit Usage (%) 1 | . . . . . . 46 . . . . . . . . . . . . Parts Cannibalized 2 | . . . . . . 2 . . . . . . . . . . . . Class Distribution -------------------- 49% | Scavenger-Mutant 31% | Mutant 7% | Scavenger-Skirmisher 4% | Hacker-Skirmisher Dominant Class ---------------- Mutant | -10/Materials Mutant | -10/Mines Mutant | -10/Subcaves Mutant | -7/Recycling Mutant | -7/Scraptown Scavenger-Mutant | -5/Factory Scavenger-Skirmisher | -5/Upper Caves Scavenger-Skirmisher | -5/Upper Caves Scavenger-Skirmisher | -5/Warlord Hacker-Mutant | -4/Proximity Caves Hacker-Skirmisher | -4/Factory Hacker-Skirmisher | -4/Extension Mutant | -4/Cetus Scavenger-Mutant | -4/Archives Scavenger-Skirmisher | -4/Hub_04(d) Hacker-Skirmisher | -3/Research Scavenger-Assassin | -3/Quarantine Scavenger-Mutant | -3/Protoforge Resources | -11 -10 -10 -10 -7 -7 -5 -5 -5 -5 -4 -4 -4 -4 -4 -4 -3 -3 -3 ----------- Run | Yrd Mat Min Sub Rec Scr Fac Upp Upp War Pro Fac Ext Cet Arc Hub Res Qua Frg Matter Collected 10058 | 284 169 94 260 . 230 973 62 46 410 75 59 696 222 262 358 296 216 5346 Remotely . | . . . . . . . . . . . . . . . . . . . Salvage Created 11269 | 142 273 206 436 68 . 2115 . . 527 13 84 717 261 484 1022 347 248 4326 Parts 482 | 8 22 14 34 2 . 75 . . 13 . 5 40 12 25 50 10 14 158 Haulers Intercepted 6 | . 1 . . . . 2 . . . . . . . . 1 1 . 1 Recyclers Shooed 7 | . . . . . . 3 . . . . . 3 . . . . 1 . Parts Field Recycled . | . . . . . . . . . . . . . . . . . . . Retrieved Matter . | . . . . . . . . . . . . . . . . . . . Parts Self-Destructed 32 | . . . 17 . . . 2 10 . 3 . . . . . . . . Prevented . | . . . . . . . . . . . . . . . . . . . Parts Restored 3 | . . . . . . . . . . . . . . . . . . 3 Faulty 3 | . . . . . . . . . . . . . . . . . . 3 Kills | -11 -10 -10 -10 -7 -7 -5 -5 -5 -5 -4 -4 -4 -4 -4 -4 -3 -3 -3 ------- Run | Yrd Mat Min Sub Rec Scr Fac Upp Upp War Pro Fac Ext Cet Arc Hub Res Qua Frg Combat Hostiles Destroyed 189 | . 8 2 16 . . 23 . . 8 1 2 11 3 2 4 2 4 103 Melee 4 | . . . . . . . . . . . . . . . . . 4 . Guns 94 | . 8 2 13 . . 15 . . 7 1 2 11 3 2 4 2 . 24 Cannons 39 | . . . 3 . . 5 . . . . . . . . . . . 31 AOE 50 | . . . . . . 1 . . 1 . . . . . . . . 48 Classes Destroyed 25 | 2 5 1 2 . . 5 . . 4 1 . 1 . . 1 . . 3 Worker 5 | . 1 . . . . . . . . . . . . . 4 . . . Builder 8 | . . . . . . 4 . . . . . 2 . . 2 . . . Tunneler 5 | 4 . . . . . . . . . . . . . . 1 . . . Hauler 6 | . 1 . . . . 2 . . . . . . . . 1 1 . 1 Recycler 11 | 1 . 2 . . . 4 . . . . . . . . 3 1 . . Mechanic 5 | . . . . . . 1 . . . . . . . . . . . 4 Operator 11 | . 1 . . . . . . . . . . . . 9 1 . . . Drone 26 | . . . . . . . . . . 1 . . . . . . . 25 Watcher 6 | . . . . . . . . . . . . 1 2 . 2 . 1 . Swarmer 22 | . 6 . 5 . . . . . . . 1 4 . . . . 2 4 Cutter 1 | . . . . . . . . . . . . . . . 1 . . . Saboteur 1 | . . . . . . . . . . . . . . . . . . 1 Grunt 33 | . 2 . 1 . . 15 . . . . . 3 . . . 1 . 11 Brawler 10 | . . . . . . . . . 3 . . . . . . . . 7 Duelist 5 | . . . . . . 1 . . . . . . . . . . . 4 Protector 7 | . . . . . . . . . 2 . . . . . . . . 5 Sentry 10 | . . 2 . . . 1 . . . . . 2 . 2 1 . . 2 Demolisher 2 | . . . . . . . . . 2 . . . . . . . . . Hunter 8 | . . . . . . 2 . . . . . . . . . . . 6 Programmer 16 | . . . . . . 4 . . . . 1 2 . . 2 . 2 5 Cetus Guard 3 | . . . . . . . . . . . . . 3 . . . . . Hotshot 6 | . . . . . . . . . . . . . . . . . . 6 Decapitator 2 | . . . . . . . . . . . . . . . . . . 2 Immortal 1 | . . . . . . . . . . . . . . . . . . 1 Striker 13 | . . . . . . . . . 1 . . . . . . 1 . 11 Executioner 13 | . . . . . . . . . . . . . . . . . . 13 Artisan 3 | . . . 3 . . . . . . . . . . . . . . . Subdweller 10 | . . . 10 . . . . . . . . . . . . . . . Scrapoid 1 | . . . . . . . . . . . . . . . . . . 1 Surgeon 1 | . . . . . . . . . 1 . . . . . . . . . Savage 1 | . . . . . . . . . . . . 1 . . . . . . Best Kill Streak 13 | 5 3 2 3 . . 12 . . 3 1 1 4 3 3 7 1 2 13 Combat Bots Only 13 | . 3 2 3 . . 7 . . 3 1 1 4 3 1 2 1 2 13 Max Kills in Single Turn 4 | 1 2 1 1 . . 3 . . 2 1 1 1 1 1 4 1 1 4 Gunslinging . | . . . . . . . . . . . . . . . . . . . Exploded 4 | . . . . . . 1 . . 1 . . . . . . . . 4 Melee 1 | . . . . . . . . . . . . . . . . . 1 . Uniques/NPCs Destroyed 1 | . . . . . . . . . . . . . . . . . . 1 Superfortress (-3/Protoforge) Combat | -11 -10 -10 -10 -7 -7 -5 -5 -5 -5 -4 -4 -4 -4 -4 -4 -3 -3 -3 -------- Run | Yrd Mat Min Sub Rec Scr Fac Upp Upp War Pro Fac Ext Cet Arc Hub Res Qua Frg Hostile Shots Fired 1092 | . 29 . 55 . . 167 . . 25 2 32 61 19 16 39 13 76 558 Missed 344 | . 8 . 18 . . 38 . . 12 . 4 18 7 7 10 4 19 199 Hits 748 | . 21 . 37 . . 129 . . 13 2 28 43 12 9 29 9 57 359 Melee 10 | . . . . . . . . . 4 . . . . . . . . 6 Projectile 738 | . 21 . 37 . . 129 . . 9 2 28 43 12 9 29 9 57 353 AOE 36 | . . . . . . . . . 24 . . . . . 2 . . 10 Critical Strikes 47 | . . . 2 . . 9 . . 1 . 1 . . . 1 . 2 31 Actively Blocked 32 | . . . . . . . . . . . . . . . 1 . 2 29 Part Disruptions 6 | . . . . . . . . . . . . . . . . . . 6 Actively Blocked 2 | . . . . . . . . . . . . . . . . . . 2 Damage Taken 17245 | . 180 14 616 . . 2722 . . 1127 29 518 561 334 194 1003 235 1553 8159 Core 1862 | . 16 14 47 . . 324 . . 70 . 40 58 63 . 77 34 78 1041 Absorbed by Shields 2911 | . . . . . . . . . . . . 198 12 40 7 124 88 2442 Ignored by Resistances 288 | . . . . . . 31 . . . 14 . 192 51 . . . . . Regen/Repaired (Parts) 3227 | . . . . . . 20 . . 95 . 146 9 82 7 236 102 760 1770 Core Remaining (%) 77 | 100 . . . . 69 . . . . 60 . . . . 79 . . . Volleys Fired 772 | 14 29 6 48 5 1 98 . 2 24 18 35 68 29 67 49 17 8 254 Largest 2 | 2 2 2 2 1 1 2 . 1 2 1 2 2 2 2 2 2 1 2 Hottest 174 | 70 70 130 160 80 . 155 . 30 75 30 118 118 118 80 115 174 80 88 Shots Fired 1092 | 28 58 12 82 4 1 180 . 2 47 18 45 102 33 84 71 22 8 295 Gun 903 | 28 58 12 66 . . 147 . 2 47 18 45 101 33 83 71 21 8 163 Cannon 152 | . . . 16 4 . 33 . . . . . . . . . . . 99 Launcher 33 | . . . . . . . . . . . . . . . . . . 33 Special 4 | . . . . . 1 . . . . . . 1 . 1 . 1 . . Kinetic 699 | 14 29 4 . . . 127 . 2 41 18 35 67 28 34 49 4 . 247 Thermal 315 | 14 29 8 82 4 . 33 . . . . 10 34 5 49 22 17 8 . Explosive 33 | . . . . . . . . . . . . . . . . . . 33 Electromagnetic 20 | . . . . . . 20 . . . . . . . . . . . . Entropic 21 | . . . . . . . . . 6 . . . . . . . . 15 Robot Hit Streak 39 | 9 6 8 14 5 6 18 . . 15 1 5 14 17 26 14 28 . 39 Robot Miss Streak 15 | 3 3 2 5 . . 5 . . 1 5 2 4 4 2 2 . . 15 Penetration Max 1 | . . . . . . 1 . . 1 . 1 1 . 1 1 . . 1 Secondary Targets 9 | . 3 . . . . . . . 2 . 1 2 . . . . . 1 Max Gunslinging Chain 1 | . 1 . . . . . . . 1 . 1 1 . . . . . 1 Shots Hit Robots 808 | 18 35 9 68 1 4 128 . . 40 2 15 67 25 72 43 14 12 255 Core Hits 614 | 7 16 12 77 1 . 61 . . 20 1 6 28 11 33 36 6 4 295 Critical Kills 59 | . . . . . . 4 . . 2 . . 5 2 1 3 1 . 41 Critical Parts Destroyed 71 | . . . . . . 3 . . 4 . 2 2 2 . 3 1 . 54 Critical Strikes 165 | 2 1 . . . . 8 . . 7 . 2 9 5 3 7 3 1 117 Burn 4 | 2 1 . . . . . . . . . . . . . . 1 . . Destroy 154 | . . . . . . 7 . . 5 . 2 9 5 3 7 2 . 114 Corrupt 1 | . . . . . . 1 . . . . . . . . . . . . Sever 1 | . . . . . . . . . . . . . . . . . 1 . Detonate 5 | . . . . . . . . . 2 . . . . . . . . 3 Melee Attacks 74 | . . . 38 . 3 . . . . . . . . . . . 30 3 Impact . | . . . . . . . . . . . . . . . . . . . Slashing 71 | . . . 38 . . . . . . . . . . . . . 30 3 Piercing . | . . . . . . . . . . . . . . . . . . . Sneak Attacks 10 | . . . 6 . 3 . . . . . . . . . . . 1 . Combat Hostiles . | . . . . . . . . . . . . . . . . . . . Follow-up Attacks . | . . . . . . . . . . . . . . . . . . . Damage Inflicted 38633 | 191 361 102 1394 29 . 4569 . . 1703 57 630 2120 741 2067 2451 369 949 20900 Guns 18980 | 191 361 102 897 . . 3253 . . 1437 57 606 2103 687 2035 1451 369 . 5431 Cannons 1748 | . . . 138 29 . 675 . . . . . . . . . . . 906 Explosions 16446 | . . . . . . 641 . . 266 . . . . . 1000 . . 14539 Melee 1294 | . . . 345 . . . . . . . . . . . . . 949 . Ramming 165 | . . . 14 . . . . . . . 24 17 54 32 . . . 24 Kinetic 14014 | 54 160 37 . . . 2919 . . 1139 57 414 1335 633 854 1083 80 . 5249 Thermal 6218 | 137 201 65 1035 29 . 1189 . . 266 . 192 768 54 1181 399 289 . 413 Explosive 14126 | . . . . . . . . . . . . . . . . . . 14126 Electromagnetic 1430 | . . . . . . 461 . . . . . . . . 969 . . . Impact . | . . . . . . . . . . . . . . . . . . . Slashing 1294 | . . . 345 . . . . . . . . . . . . . 949 . Piercing . | . . . . . . . . . . . . . . . . . . . Entropic 1386 | . . . . . . . . . 298 . . . . . . . . 1088 Highest Corruption 36 | . . . . . . 1 . . 1 1 3 4 . . 5 . 8 36 Average Corruption 6 | . . . . . . 1 . . 1 1 2 3 . . 1 . 4 11 Corruption Purged 6 | . . . . . . 2 . . . . . 4 . . . . . . Corruption Blocked . | . . . . . . . . . . . . . . . . . . . Effects 195 | . . . . . . . . . 2 2 7 27 . . 3 . 19 135 Message Errors 39 | . . . . . . . . . . . 2 7 . . 1 . 3 26 Matter Fused 48 | . . . . . . . . . 2 2 2 4 . . 1 . 4 33 Heat Flow Errors 27 | . . . . . . . . . . . 1 3 . . . . 3 20 Energy Discharges 23 | . . . . . . . . . . . 1 2 . . . . 4 16 Parts Rejected 5 | . . . . . . . . . . . . 1 . . . . . 4 Data Loss (minor) 23 | . . . . . . . . . . . . 6 . . . . 4 13 Data Loss (major) 11 | . . . . . . . . . . . 1 1 . . 1 . 1 7 Misfires 1 | . . . . . . . . . . . . 1 . . . . . . Alerts 6 | . . . . . . . . . . . . 1 . . . . . 5 Misdirections 6 | . . . . . . . . . . . . . . . . . . 6 Weapon Failures 6 | . . . . . . . . . . . . 1 . . . . . 5 Overload Shots . | . . . . . . . . . . . . . . . . . . . Overflow Damage 949 | . . . 113 . . 55 . . 21 . 7 . 3 22 6 . 165 557 Projectiles 3 | . . . . . . 3 . . . . . . . . . . . . Explosions 636 | . . . . . . 52 . . 21 . . . . . 6 . . 557 Melee 310 | . . . 113 . . . . . . . 7 . 3 22 . . 165 . Knockbacks 21 | . . . . . . . . . . . . . 1 . . . . 20 Impact 1 | . . . . . . . . . . . . . 1 . . . . . Kinetic 19 | . . . . . . . . . . . . . . . . . . 19 Secondary 1 | . . . . . . . . . . . . . . . . . . 1 Self-Inflicted Damage 463 | . . . . . . 175 . . 99 . . . . . 189 . . . Shots 6 | . . . . . . 3 . . 1 . . . . . 2 . . . Rammed 2 | . . . 2 . . . . . . . . . . . . . . . Targets Rammed 13 | . . . 2 . . . . . . . 2 3 3 1 . . . 2 Kicked 11 | . . . . . . . . . . . 2 3 3 1 . . . 2 Crushed . | . . . . . . . . . . . . . . . . . . . Highest Temperature 270 | 150 134 120 126 210 . 216 . . 2 . 218 270 48 88 150 234 211 233 Average Temperature 65 | 70 54 58 51 98 . 90 . . 2 . 122 53 19 23 51 76 107 96 Received Heat Transfer 1364 | . 36 9 51 . . 825 . . 9 . . 42 27 4 84 30 13 234 Effects 1 | . . . . . . . . . . . . 1 . . . . . . Energy Bleed 1 | . . . . . . . . . . . . 1 . . . . . . Siege Activations . | . . . . . . . . . . . . . . . . . . . Martial Activations . | . . . . . . . . . . . . . . . . . . . Shielding Activations . | . . . . . . . . . . . . . . . . . . . Robots Disrupted . | . . . . . . . . . . . . . . . . . . . Combat Hostiles . | . . . . . . . . . . . . . . . . . . . Robots Corrupted 3 | . . . . . . 2 . . . . . . 1 . . . . . Combat Hostiles 2 | . . . . . . 2 . . . . . . . . . . . . Parts Fried 7 | . . . . . . 3 . . . . . 1 . . 3 . . . Impact Corruptions 3 | . . . . . . . . . . . 1 . 1 1 . . . . Robots Melted . | . . . . . . . . . . . . . . . . . . . Combat Hostiles . | . . . . . . . . . . . . . . . . . . . Parts Melted 13 | 2 1 . 4 . . 2 . . . . . 1 . 2 . 1 . . Heat Transferred 8213 | 555 666 124 1310 37 . 1385 . . 150 . 222 1036 74 1480 494 444 . 236 Parts Sabotaged . | . . . . . . . . . . . . . . . . . . . Parts Stolen . | . . . . . . . . . . . . . . . . . . . Parts Stripped . | . . . . . . . . . . . . . . . . . . . Power Chain Reactions 4 | . . . . . . 3 . . . . . . . . 1 . . . Alert | -11 -10 -10 -10 -7 -7 -5 -5 -5 -5 -4 -4 -4 -4 -4 -4 -3 -3 -3 ------- Run | Yrd Mat Min Sub Rec Scr Fac Upp Upp War Pro Fac Ext Cet Arc Hub Res Qua Frg Maximum Alert Level 5 | . . . . . . 2 . . . . 2 3 2 . 3 2 . 5 Low Security (%) 83 | 100 100 100 . 100 . 56 . . . . 73 25 . 100 82 43 100 19 Level 1 8 | . . . . . . 14 . . . . 13 64 89 . 11 49 . 15 Level 2 3 | . . . . . . 28 . . . . 12 8 10 . 5 6 . 11 Level 3 3 | . . . . . . . . . . . . 2 . . . . . 35 Level 4 . | . . . . . . . . . . . . . . . . . . 7 Level 5 . | . . . . . . . . . . . . . . . . . . 11 High Security . | . . . . . . . . . . . . . . . . . . . Max Security . | . . . . . . . . . . . . . . . . . . . Peak Influence 1970 | 10 123 46 . 69 . 533 . . . . 450 752 435 148 837 429 175 1970 Initial 450 | . . 31 . 69 . . . . . . 450 37 418 79 . 429 175 . Average 108 | 1 32 13 . 3 . 214 . . . . 123 292 303 1 152 228 40 786 Influence Increases 8876 | 25 222 122 176 6 . 1101 . . 130 5 695 1317 201 183 1152 440 292 2809 Destroy 0b10 Robot/C 4180 | . 160 80 120 . . 480 . . 120 . 40 580 160 80 220 240 80 1820 Destroy 0b10 Robot/NC 500 | 25 15 10 . 5 . 55 . . 10 5 . 35 10 45 90 10 5 180 Destroy Leader 624 | . 32 10 10 . . 84 . . . . 20 74 . . 78 52 22 242 Allied During Kill 630 | . . 7 1 . . 4 . . . . . 327 11 8 36 87 . 149 Successful Hack 167 | . . . . . . . . . . . 15 9 . . 5 10 10 118 Disable Machine 810 | . . . . . . 240 . . . . 30 75 . 30 210 . 75 150 Destroy Structure 1065 | . . . . 1 . 238 . . . . 80 172 20 20 468 26 10 30 Advance Influence 450 | . . . . . . . . . . . 450 . . . . . . . Partial Spotted 60 | . 15 15 . . . . . . . . . . . . . . 30 . Lose Combat Pursuer 390 | . . . 45 . . . . . . . 60 45 . . 45 15 60 120 Influence Decreases 7001 | 25 140 204 31 151 . 589 460 52 130 5 619 645 750 382 333 946 605 934 Entered New Map 1345 | . . 51 . 76 . . 190 11 . . . 39 330 120 . 390 138 . Time Decay 4648 | 25 140 113 21 75 . 449 270 41 100 5 369 506 350 262 303 556 419 644 Search Patrol Dispatched 100 | . . . . . . . . . . . 100 . . . . . . . Lost Part 380 | . . . 10 . . 120 . . 30 . . . 10 . 30 . 10 170 Lost Ally 340 | . . 40 . . . 20 . . . . . 100 60 . . . . 120 Purge Threat 188 | . . . . . . . . . . . 150 . . . . . 38 . Squads Dispatched 43 | . 2 . . . . 5 . . . . 6 3 . . 4 10 3 10 Investigation 17 | . 1 . . . . 1 . . . . 3 . . . . 7 . 5 Extermination 9 | . . . . . . 2 . . . . 2 . . . 2 . 2 1 Reinforcement 16 | . 1 . . . . 1 . . . . 1 3 . . 2 3 1 4 Assault 1 | . . . . . . 1 . . . . . . . . . . . . Garrison . | . . . . . . . . . . . . . . . . . . . Intercept . | . . . . . . . . . . . . . . . . . . . Searches Triggered 1 | . . . . . . . . . . . 1 . . . . . . . Construction Impeded 1 | . . . . . . . . . . . . 1 . . . . . . Haulers Reinforced 2 | . . . . . . 1 . . . . . . . . . 1 . . Active Scanning Responses . | . . . . . . . . . . . . . . . . . . . Cargo Convoy Interrupts . | . . . . . . . . . . . . . . . . . . . Stealth | -11 -10 -10 -10 -7 -7 -5 -5 -5 -5 -4 -4 -4 -4 -4 -4 -3 -3 -3 --------- Run | Yrd Mat Min Sub Rec Scr Fac Upp Upp War Pro Fac Ext Cet Arc Hub Res Qua Frg Distress Signals 25 | . 1 . . . . . . . 2 1 . 2 2 . 3 6 . 8 Communications Jammed 75 | . . . . . . . . . . . . . . . 18 . 47 10 Distress Signals 75 | . . . . . . . . . . . . . . . 18 . 47 10 Times Spotted 463 | . 13 4 23 . . 28 . . 67 5 7 31 10 32 21 29 12 181 Peak Tracking Total 14 | . 3 2 4 . . 8 . . 14 3 4 4 5 1 7 4 4 12 Tactical Retreats 20 | . . . 2 . . . . . . . 2 3 . . 1 1 4 7 Traps | -11 -10 -10 -10 -7 -7 -5 -5 -5 -5 -4 -4 -4 -4 -4 -4 -3 -3 -3 ------- Run | Yrd Mat Min Sub Rec Scr Fac Upp Upp War Pro Fac Ext Cet Arc Hub Res Qua Frg Traps Triggered 13 | . 1 . 1 . . 4 . . . . . . . . 1 3 . 3 Indirectly 4 | . . . . . . 3 . . . . . . . . 1 . . . Trap Hack Attempts . | . . . . . . . . . . . . . . . . . . . Triggered . | . . . . . . . . . . . . . . . . . . . Disarmed . | . . . . . . . . . . . . . . . . . . . Reprogrammed . | . . . . . . . . . . . . . . . . . . . Reused 1 | . . . 1 . . . . . . . . . . . . . . . Traps Extracted . | . . . . . . . . . . . . . . . . . . . Installed 1 | . . . 1 . . . . . . . . . . . . . . . Triggered . | . . . . . . . . . . . . . . . . . . . Machines | -11 -10 -10 -10 -7 -7 -5 -5 -5 -5 -4 -4 -4 -4 -4 -4 -3 -3 -3 ---------- Run | Yrd Mat Min Sub Rec Scr Fac Upp Upp War Pro Fac Ext Cet Arc Hub Res Qua Frg Machines Disabled 58 | . . . 1 . . 16 . . 1 . 2 5 . 2 14 . 5 12 Max in Single Turn 5 | . . . 1 . . 4 . . 1 . 1 1 . 1 5 . 1 2 Garrison Access 3 | . . . . . . . . . . . . . . . . 2 . 1 Network Hub 2 | . . . . . . . . . . . . . . . 2 . . . Energy Cycler 1 | . . . . . . . . . . . . 1 . . . . . . Machines Repaired . | . . . . . . . . . . . . . . . . . . . Machines Dismantled . | . . . . . . . . . . . . . . . . . . . Machines Sabotaged . | . . . . . . . . . . . . . . . . . . . Overloaded Fab Kills . | . . . . . . . . . . . . . . . . . . . Hacking | -11 -10 -10 -10 -7 -7 -5 -5 -5 -5 -4 -4 -4 -4 -4 -4 -3 -3 -3 --------- Run | Yrd Mat Min Sub Rec Scr Fac Upp Upp War Pro Fac Ext Cet Arc Hub Res Qua Frg Machines Accessed 55 | . . . 3 . 2 1 2 1 5 . 9 9 . . 3 6 5 9 Terminals 21 | . . . . . . . . . . . 4 8 . . 3 . 3 3 Fabricators 3 | . . . . . . . . . . . . . . . . 1 . 2 Repair Stations 3 | . . . . . . . . . . . 1 1 . . . . 1 . Recycling Units 9 | . . . . . . 1 . . . . 2 . . . . 3 . 3 Scanalyzers 2 | . . . . . . . . . . . 1 . . . . . 1 . Garrison Access 4 | . . . . . . . . . . . 1 . . . . 2 . 1 Total Hacks 156 | . . . 3 . 22 5 4 1 9 . 31 25 . . 7 14 11 24 Successful 110 | . . . 3 . 22 1 4 1 9 . 19 16 . . 3 8 7 17 Failed 46 | . . . . . . 4 . . . . 12 9 . . 4 6 4 7 Catastrophic 5 | . . . . . . 1 . . . . 1 . . . 2 . 1 . Database Lockouts . | . . . . . . . . . . . . . . . . . . . Manual 54 | . . . . . . 5 . . . . 19 11 . . 2 4 4 9 Terminals 67 | . . . . . . . . . . . 18 22 . . 7 . 6 14 Fabricators 8 | . . . . . . . . . . . . . . . . 3 . 5 Repair Stations 8 | . . . . . . . . . . . 2 3 . . . . 3 . Recycling Units 16 | . . . . . . 5 . . . . 3 . . . . 4 . 4 Scanalyzers 7 | . . . . . . . . . . . 5 . . . . . 2 . Garrison Access 11 | . . . . . . . . . . . 3 . . . . 7 . 1 Terminal Hacks 61 | . . . 3 . 22 . 4 1 9 . 4 8 . . 3 . 2 5 Record 29 | . . . . . 22 . 3 . 4 . . . . . . . . . Robot Analysis 1 | . . . . . . . . . . . . 1 . . . . . . Prototype ID Bank 5 | . . . . . . . . . 4 . . . . . . . . 1 Open Door 9 | . . . 1 . . . 1 1 1 . . 5 . . . . . . Alert Level 4 | . . . . . . . . . . . 1 1 . . 1 . 1 . Unreport Threat 2 | . . . . . . . . . . . 1 . . . . . 1 . Locate Traps 5 | . . . . . . . . . . . 2 1 . . . . . 2 Hauler Manifests 1 | . . . . . . . . . . . . . . . 1 . . . Zone Layout 2 | . . . . . . . . . . . . . . . 1 . . 1 Proto ID Catalog 2 | . . . 1 . . . . . . . . . . . . . . 1 Release Object 1 | . . . 1 . . . . . . . . . . . . . . . Fabricator Hacks 7 | . . . . . . . . . . . . . . . . 3 . 4 Load Schematic 3 | . . . . . . . . . . . . . . . . 1 . 2 Build 4 | . . . . . . . . . . . . . . . . 2 . 2 Repair Station Hacks 5 | . . . . . . . . . . . 2 1 . . . . 2 . Scan Component 3 | . . . . . . . . . . . 1 1 . . . . 1 . Repair 2 | . . . . . . . . . . . 1 . . . . . 1 . Recycling Unit Hacks . | . . . . . . . . . . . . . . . . . . . Scanalyzer 6 | . . . . . . . . . . . 4 . . . . . 2 . Insert Component 2 | . . . . . . . . . . . 2 . . . . . . . Analyze 1 | . . . . . . . . . . . 1 . . . . . . . Retrieve Study 3 | . . . . . . . . . . . 1 . . . . . 2 . Garrison Access Hacks 3 | . . . . . . . . . . . . . . . . 2 . 1 Seal Access 3 | . . . . . . . . . . . . . . . . 2 . 1 Unauthorized Hacks 28 | . . . . . . 1 . . . . 9 7 . . . 3 1 7 Terminals 19 | . . . . . . . . . . . 7 7 . . . . 1 4 Track 2 | . . . . . . . . . . . 1 . . . . . . 1 Assimilate 2 | . . . . . . . . . . . . 2 . . . . . . Botnet 7 | . . . . . . . . . . . 2 2 . . . . 1 2 Operators 1 | . . . . . . . . . . . . . . . . . . 1 Skim 7 | . . . . . . . . . . . 4 3 . . . . . . Fabricators . | . . . . . . . . . . . . . . . . . . . Repair Stations . | . . . . . . . . . . . . . . . . . . . Recycling Units 9 | . . . . . . 1 . . . . 2 . . . . 3 . 3 Fedlink 7 | . . . . . . 1 . . . . 2 . . . . 3 . 1 Scrapoids 2 | . . . . . . . . . . . . . . . . . . 2 Scanalyzers . | . . . . . . . . . . . . . . . . . . . Garrison Access . | . . . . . . . . . . . . . . . . . . . Data Cores Recovered . | . . . . . . . . . . . . . . . . . . . Used . | . . . . . . . . . . . . . . . . . . . Hacking Detections 24 | . . . . . . 1 . . . . 5 6 . . 2 3 3 4 Full Trace Events 4 | . . . . . . . . . . . 1 . . . . 1 . 2 Feedback Events . | . . . . . . . . . . . . . . . . . . . Feedback Blocked . | . . . . . . . . . . . . . . . . . . . Robot Schematics Acquired . | . . . . . . . . . . . . . . . . . . . Robots Built 2 | . . . . . . . . . . . . . . . . 2 . . Authchips . | . . . . . . . . . . . . . . . . . . . Time 93 | . . . . . . . . . . . . . . . . 93 . . Total Robot Build Rating 14 | . . . . . . . . . . . . . . . . 14 . . Part Schematics Acquired 63 | . . . . . 10 8 3 2 14 . 4 2 1 . . 1 17 1 Parts Built 3 | . . . . . . . . . . . . . . . . 1 . 2 Authchips . | . . . . . . . . . . . . . . . . . . . Time 99 | . . . . . . . . . . . . . . . . 36 . 63 Total Part Build Rating 13 | . . . . . . . . . . . . . . . . 3 . 10 Part Studies Acquired 3 | . . . . . . . . . . . 1 . . . . . 2 . Parts Repaired 2 | . . . . . . . . . . . 1 . . . . . 1 . Time 78 | . . . . . . . . . . . 44 . . . . . 34 . Parts Recycled . | . . . . . . . . . . . . . . . . . . . Recycled Matter . | . . . . . . . . . . . . . . . . . . . Retrieved Matter . | . . . . . . . . . . . . . . . . . . . Retrieved Components . | . . . . . . . . . . . . . . . . . . . Parts Scanalyzed 2 | . . . . . . . . . . . 2 . . . . . . . Part Schematics Acquired 1 | . . . . . . . . . . . 1 . . . . . . . Parts Damaged 1 | . . . . . . . . . . . 1 . . . . . . . Bothacking | -11 -10 -10 -10 -7 -7 -5 -5 -5 -5 -4 -4 -4 -4 -4 -4 -3 -3 -3 ------------ Run | Yrd Mat Min Sub Rec Scr Fac Upp Upp War Pro Fac Ext Cet Arc Hub Res Qua Frg Used RIF Installer . | . . . . . . . . . . . . . . . . . . . Robots Hacked 3 | . . . . . 3 . . . . . . . . . . . . . Non-combat 1 | . . . . . 1 . . . . . . . . . . . . . Combat 2 | . . . . . 2 . . . . . . . . . . . . . Robot Hacks Applied 3 | . . . . . 3 . . . . . . . . . . . . . parse_system 3 | . . . . . 3 . . . . . . . . . . . . . Relay Couplers Released . | . . . . . . . . . . . . . . . . . . . Fabnet Peak Effective % . | . . . . . . . . . . . . . . . . . . . Robots Rewired 11 | . . . . . . . . . . . . 11 . . . . . . Allies Hacked . | . . . . . . . . . . . . . . . . . . . Hacks Repelled 1 | . . . . . . . . . 1 . . . . . . . . . Allies | -11 -10 -10 -10 -7 -7 -5 -5 -5 -5 -4 -4 -4 -4 -4 -4 -3 -3 -3 -------- Run | Yrd Mat Min Sub Rec Scr Fac Upp Upp War Pro Fac Ext Cet Arc Hub Res Qua Frg Total Allies 29 | . . 3 . . 1 . . . . . . 17 1 . . 2 . 5 Largest Group 8 | . . 3 1 . 1 1 . . . . . 8 3 1 1 3 1 5 Highest-Rated Group 427 | . . 40 16 . 90 90 . . . . . 427 150 150 150 253 136 323 Highest-Rated Ally 159 | . . 16 16 . 90 90 . . . . . 159 150 150 150 141 136 67 Initial UFD Resources 84 | . . . . . . 38 48 48 48 51 51 65 65 65 65 68 84 84 Total Orders 24 | . . . . . 3 1 . . . . . 1 3 1 5 4 . 6 STAY 9 | . . . . . 2 . . . . . . 1 . 1 3 2 . . FOLLOW 5 | . . . . . 1 . . . . . . . . . 2 2 . . RETURN 10 | . . . . . . 1 . . . . . . 3 . . . . 6 Ally Attacks 435 | . . 15 13 . . 4 . . . . . 161 17 4 20 57 2 142 Total Damage 20387 | . . 189 113 . . 329 . . . . . 6355 1277 262 1405 2110 229 8118 Kills 81 | . . 2 . . . 1 . . . . . 29 5 2 11 11 . 20 Allies Corrupted 3 | . . . . . . . . . . . . 2 . . . . 1 . Allies Melted 3 | . . . . . . 1 . . . . . . . . . . . 2 Intel | -11 -10 -10 -10 -7 -7 -5 -5 -5 -5 -4 -4 -4 -4 -4 -4 -3 -3 -3 ------- Run | Yrd Mat Min Sub Rec Scr Fac Upp Upp War Pro Fac Ext Cet Arc Hub Res Qua Frg Active Infowar (turns) 43634 | 21 533 . 4089 . 2 656 573 561 1179 470 929 1372 781 25690 741 1626 1105 3306 Optics 36108 | . . . . . . . . . 685 470 929 1372 781 25690 741 1626 1051 2763 Sensors 8870 | . . . . . 2 345 571 561 494 470 929 878 . 107 630 814 974 2095 Structural 3054 | . . . . . . 520 11 482 494 . 763 174 . 106 91 198 206 9 Traps 595 | . . . . . . . . . . . . . . . . . . 595 Seismic 4643 | 21 533 . 4089 . . . . . . . . . . . . . . . Cloaking 665 | . . . . . . . . . . . . . . . . . . 665 Jamming 748 | . . . . . . . . . . . . 4 55 22 154 105 228 180 Robot Analysis Total 1 | . . . . . . . . . . . . 1 . . . . . . Derelict Logs Recovered 10 | . . 1 3 . 2 . 1 1 . 2 . . . . . . . . Drone Launches 11 | . . . . . . 1 . . . . . . 3 . . . . 7 Drone Recoveries 10 | . . . . . . 1 . . . . . . 3 . . . . 6 Exploration | -11 -10 -10 -10 -7 -7 -5 -5 -5 -5 -4 -4 -4 -4 -4 -4 -3 -3 -3 ------------- Run | Yrd Mat Min Sub Rec Scr Fac Upp Upp War Pro Fac Ext Cet Arc Hub Res Qua Frg Turns Passed 60640 | 117 693 405 8166 1553 9419 1295 580 561 1220 470 929 1372 781 25690 741 1626 1553 3469 Spaces Moved 21328 | 71 276 305 3548 589 4971 577 547 551 945 277 663 834 522 1864 460 886 688 2754 Core 1997 | 4 . . . . 478 . . . . . . . . 1515 . . . . Treads 5861 | . 5 . 3108 589 1893 266 . . . . . . . . . . . . Legs 7697 | . . . . . . . . . 264 277 663 834 522 349 460 886 688 2754 Wheels 5024 | 67 271 305 440 . 1851 311 547 551 681 . . . . . . . . . Hover 120 | . . . . . 120 . . . . . . . . . . . . . Flight 629 | . . . . . 629 . . . . . . . . . . . . . Fastest Speed 34 | 50 80 110 80 260 34 101 101 101 101 105 97 97 101 105 105 110 116 80 Average Speed 245 | 78 102 110 170 260 172 148 101 101 108 105 98 98 104 1360 105 128 121 87 Slowest Speed 1650 | 80 240 110 260 260 260 250 101 101 250 105 105 172 105 1650 110 183 126 350 Overloaded Moves . | . . . . . . . . . . . . . . . . . . . Propulsion Burnouts . | . . . . . . . . . . . . . . . . . . . Robots Hopped . | . . . . . . . . . . . . . . . . . . . Potential Cave-ins . | . . . . . . . . . . . . . . . . . . . Cave-ins Triggered 1 | . . . . . . . . . . . . . . . . . 1 . Teleports 2 | . . . . . . . . . . . . . . . . . . 2 Exploration Rate (%) 59 | 3 49 64 93 83 89 13 75 66 81 54 21 89 70 98 51 20 66 51 Regions Visited 18 Branch Regions 14 Pre-discovered Areas 8 | . . 1 1 . 5 . . . . . 1 . . . . . . . Known Exits Taken 12 | . . . . . 1 1 1 1 . 1 1 1 1 1 1 1 1 . Unknown Exits Taken 6 | 1 1 1 1 1 . . . . 1 . . . . . . . . . Scrap Searched 26 | . . 1 10 . 10 . 1 3 . 1 . . . . . . . . Spaces Dug 70 | . . . 1 1 . 1 . 3 . 12 34 7 . . 4 4 3 . Terrain Destroyed 778 | . . . 3 3 . 140 . 3 17 25 47 45 13 10 351 4 6 111 Melee 3 | . . . 1 . . . . . . . . . . . . . 2 . Projectile 265 | . . . 2 3 . 73 . 3 11 25 47 45 13 10 20 4 4 5 AOE 507 | . . . . . . 67 . . 6 . . . . . 331 . . 103 Terrain Rammed . | . . . . . . . . . . . . . . . . . . . Walls Destroyed . | . . . . . . . . . . . . . . . . . . . Machines Disabled . | . . . . . . . . . . . . . . . . . . . Actions | -11 -10 -10 -10 -7 -7 -5 -5 -5 -5 -4 -4 -4 -4 -4 -4 -3 -3 -3 --------- Run | Yrd Mat Min Sub Rec Scr Fac Upp Upp War Pro Fac Ext Cet Arc Hub Res Qua Frg Total 28338 | 103 632 368 5510 607 5818 820 574 553 1099 437 891 1276 733 2106 640 1347 1341 3483 Wait 5202 | 4 292 27 1813 5 704 64 21 . 61 141 175 271 101 162 113 397 558 293 Move 21311 | 70 275 304 3548 588 4970 576 546 550 944 276 662 833 521 1863 459 885 687 2754 Hop . | . . . . . . . . . . . . . . . . . . . Pick Up 224 | 8 12 14 14 8 60 6 1 . 8 . 3 5 31 4 1 8 15 26 Fast Attach 137 | 7 . . 5 . 22 34 . . 14 . 4 5 13 . . 9 4 20 Attach 72 | . 2 . 4 . 2 6 2 . 10 . 2 4 . 2 2 1 9 26 Detach 25 | . 2 . . . 1 4 . . 7 . 1 . . . . . . 10 Swap 194 | . 14 7 18 . 2 14 2 1 5 2 2 11 . 5 15 18 12 66 Drop 239 | . 6 10 18 1 53 18 2 . 26 . 4 7 35 2 1 12 18 26 Fire 772 | 14 29 6 48 5 1 98 . 2 24 18 35 68 29 67 49 17 8 254 Melee 74 | . . . 38 . 3 . . . . . . . . . . . 30 3 Ram . | . . . . . . . . . . . . . . . . . . . Kick 11 | . . . . . . . . . . . 2 3 3 1 . . . 2 Crush 1 | . . . 1 . . . . . . . . . . . . . . . Escape Stasis 3 | . . . . . . . . . . . . . . . . . . 3 Rewire 69 | . . . . . . . . . . . . 69 . . . . . . Trap 1 | . . . 1 . . . . . . . . . . . . . . . Miscellaneous 3 | . . . 2 . . . . . . . 1 . . . . . . . Route ------- -11/Scrapyard -10/Materials -10/Mines (discovered 3 exits: [*Mat x2] / *Sub) -10/Subcaves (discovered 3 exits: [*Mat x2] / *Rec) -7/Recycling (discovered 2 exits: *Fac / *Scr) -7/Scraptown (discovered 2 exits: *Fac x2) -5/Factory (discovered 6 exits: Fac x4 / *Upp x2) -5/Upper Caves -5/Upper Caves (discovered 2 exits: *Fac / *War) -5/Warlord -4/Proximity Caves -4/Factory (discovered 2 exits: Res / *Ext) -4/Extension (discovered 2 exits: *Res / *Cet) -4/Cetus (discovered 2 exits: *Res / *Arc) -4/Archives (discovered 3 exits: *Res / *Hub x2) -4/Hub_04(d) (discovered 2 exits: *Res x2) -3/Research (discovered 2 exits: *Arm / *Qua) -3/Quarantine (discovered 3 exits: [*Res] / *Sec / *Frg) -3/Protoforge History --------- Turn | Location | Event 24 | -11/Scrapyard | Discovered new exit (range 15) 118 | -11/Scrapyard | Entered Materials 317 | -10/Materials | Build established: Mutant 571 | -10/Materials | Discovered new exit (range 11) 811 | -10/Materials | Entered Mines 816 | -10/Mines | Assisted by bots powering up and referring to "LRC-V3" 836 | -10/Mines | A weapon hastily lodged in a ceiling crevice suddenly fell to the ground 841 | -10/Mines | Discovered new exit (range 5) 968 | -10/Mines | Found DCF Scrap (11 items) 971 | -10/Mines | Learned location of Zion (-6) 993 | -10/Mines | Found a damaged Exp. Sensor Array with a note attached 996 | -10/Mines | Found Prototype Device 1022 | -10/Mines | Discovered new exit (range 8) 1196 | -10/Mines | Discovered new exit (range 15) 1216 | -10/Mines | Entered Subcaves 1216 | -10/Subcaves | Accompanied by 1 ally 1217 | -10/Subcaves | Shifting Twisted Machinery released Mak. System Restoration Module 1228 | -10/Subcaves | Met a Zionite searching for "candidates" 1230 | -10/Subcaves | Discovered new exit (range 11) 1349 | -10/Subcaves | Learned Materials non-interactive machine intel 1647 | -10/Subcaves | Discovered new exit (range 12) 1846 | -10/Subcaves | Learned 4 Materials zone layouts 2056 | -10/Subcaves | Shifting Twisted Machinery released Spk. Treads 2129 | -10/Subcaves | Shifting Twisted Machinery released Mak. Light Armor Plating 2461 | -10/Subcaves | Shifting Twisted Machinery released Mak. Kinetic Plating 4691 | -10/Subcaves | Visited 4L-MR0's lab 5853 | -10/Subcaves | A swath of the cavern ceiling suddenly collapsed 6924 | -10/Subcaves | Shifting Twisted Machinery released Sub. Beam Cannon 6926 | -10/Subcaves | Shifting Twisted Machinery released Mak. Axe 7485 | -10/Subcaves | Discovered new exit (range 5) 7771 | -10/Subcaves | Build established: Subdweller-Mutant 8410 | -10/Subcaves | Found SUBCON Basin 8516 | -10/Subcaves | Build established: Mutant 8979 | -10/Subcaves | Found Meta Core 9382 | -10/Subcaves | Entered Recycling 10058 | -7/Recycling | Discovered new exit (range 16) 10129 | -7/Recycling | Scanned before Scraplab entrance 10168 | -7/Recycling | Entered Scraplab 10930 | -7/Recycling | Discovered new exit (range 3) 10935 | -7/Recycling | Entered Scraptown 11284 | -7/Scraptown | Heard Great Nut preacher, LISTEN AND RECITE! 11323 | -7/Scraptown | Scanned Subdweller tech in exchange for log data 11331 | -7/Scraptown | Learned Research garrison access intel 11357 | -7/Scraptown | Discovered new exit (range 13) 11674 | -7/Scraptown | Visited SPCMW 11710 | -7/Scraptown | Visited Shadow of the Wyrm 11760 | -7/Scraptown | Visited TADAMA 11791 | -7/Scraptown | Visited Cave Peace 11819 | -7/Scraptown | Visited Bundlers 11965 | -7/Scraptown | Visited UFD Registry 11965 | -7/Scraptown | Registered with UFD as "Wrenchcell" 12389 | -7/Scraptown | Visited Symbiants 12534 | -7/Scraptown | Visited Scrapoid Research Area 12571 | -7/Scraptown | Visited Botcube Research 12607 | -7/Scraptown | Visited Abandonware Association 12636 | -7/Scraptown | Learned abandonware demo "REVENGE.EXE" 12636 | -7/Scraptown | Learned abandonware demo "TRNCOAT.EXE" 12693 | -7/Scraptown | Visited Curators Association 12776 | -7/Scraptown | Visited DA-N13 Charitable Foundation 12787 | -7/Scraptown | Found DCF Scrap (28 items) 12846 | -7/Scraptown | Visited Junk Repository 12896 | -7/Scraptown | Visited Cartography Club 13058 | -7/Scraptown | Visited A0-MCA Data Center 13105 | -7/Scraptown | Visited Chapter 10 13149 | -7/Scraptown | Visited LU-1G1's Boring Crew 13301 | -7/Scraptown | Delivered Scrap Shield to a Scientist 13587 | -7/Scraptown | Given an A rating by A0-MCA 13590 | -7/Scraptown | Found A0-MCA's Component Scanner 13642 | -7/Scraptown | Learned location of Upper Caves (-5) 13642 | -7/Scraptown | Learned location of Extension (-4) 13642 | -7/Scraptown | Learned location of Quarantine (-3) 13642 | -7/Scraptown | Learned 8 Materials zone layouts 13642 | -7/Scraptown | Learned 16 Materials zone layouts 13642 | -7/Scraptown | Learned 8 Research zone layouts 13642 | -7/Scraptown | Learned 8 Access zone layouts 13642 | -7/Scraptown | Learned 16 Lower Caves zone layouts 13642 | -7/Scraptown | Learned 24 Upper Caves zone layouts 13642 | -7/Scraptown | Learned 24 Proximity Caves zone layouts 13642 | -7/Scraptown | Learned location of 2 exits from Factory 13642 | -7/Scraptown | Learned location of 2 exits from Lower Caves 13642 | -7/Scraptown | Learned location of 3 exits from Lower Caves 13642 | -7/Scraptown | Identified exit to Factory 13657 | -7/Scraptown | Found Deep Structural Scanner 13686 | -7/Scraptown | Identified Exp. Sensor Array 14320 | -7/Scraptown | Found Lrg. Botcube 14379 | -7/Scraptown | Tech Extrapolator generated special schematic: Machine Rigger 15300 | -7/Scraptown | Tech Extrapolator generated special schematic: Deep Structural Scanner 16592 | -7/Scraptown | Build established: Derelict-Mutant 17176 | -7/Scraptown | Build established: Mutant 17501 | -7/Scraptown | Found Scrap Suit 18068 | -7/Scraptown | Build established: Derelict-Mutant 18617 | -7/Scraptown | Build established: Mutant 19274 | -7/Scraptown | Lrg. Botcube activated 19310 | -7/Scraptown | Lrg. Botcube completed mutation into treaded form, armed with 4 cannons 19781 | -7/Scraptown | Attached CPS modules to Large Mutated Botcube 20267 | -7/Scraptown | Met Optimus 20267 | -7/Scraptown | Accepted into 0bPrime 20354 | -7/Scraptown | Entered Factory 20354 | -5/Factory | Accompanied by 1 ally 20354 | -5/Factory | Evolved 10 slots: Propulsion x2, Utility x8 20355 | -5/Factory | Identified exit to Factory 20355 | -5/Factory | Identified exit to Upper Caves 20482 | -5/Factory | Found Lrg. Botcube 20774 | -5/Factory | Build established: Scavenger-Mutant 20937 | -5/Factory | Loaded intel: 8 recycling unit locations 21067 | -5/Factory | Lost 3 parts (1p1n1u) 21088 | -5/Factory | Destroyed 7 combat bots 21222 | -5/Factory | Found Prototype Launcher 21229 | -5/Factory | Identified Scatter Rocket Array 21453 | -5/Factory | Lost 3 parts (2n1u) 21521 | -5/Factory | Lost 3 parts (1p2u) 21554 | -5/Factory | First assault squad dispatched 21649 | -5/Factory | Entered Upper Caves 21650 | -5/Upper Caves | Identified exit to Upper Caves 21651 | -5/Upper Caves | UFD Scientist delivered a prototype 21659 | -5/Upper Caves | Found Prototype Protection 21964 | -5/Upper Caves | Build established: Scavenger-Skirmisher 22143 | -5/Upper Caves | Entered an active Warlord outpost 22150 | -5/Upper Caves | Learned Factory trap positions 22158 | -5/Upper Caves | Learned location of 1 exit from Factory 22158 | -5/Upper Caves | Learned Factory terminal intel 22229 | -5/Upper Caves | Entered another Upper Caves area 22298 | -5/Upper Caves | Discovered exit to Factory (range 10) 22542 | -5/Upper Caves | Identified exit to Warlord 22790 | -5/Upper Caves | Entered Warlord 22822 | -5/Warlord | Discovered new exit (range 8) 22961 | -5/Warlord | Found Prototype Device 22961 | -5/Warlord | Identified Minesniffer Drone Bay 23180 | -5/Warlord | Visited the Vortex Lab 23186 | -5/Warlord | Found Prototype Energy Gun 23186 | -5/Warlord | Identified Vortex Shotgun 23193 | -5/Warlord | Found Vortex Shotgun 23197 | -5/Warlord | Warlord's base attacked by MAIN.C 23197 | -5/Warlord | Found Prototype Energy Gun 23197 | -5/Warlord | Identified Vortex Rail 23200 | -5/Warlord | Found Vortex Rail 23202 | -5/Warlord | Found Prototype Launcher 23280 | -5/Warlord | Found Prototype Device 23280 | -5/Warlord | Identified Exp. Focal Shield 23315 | -5/Warlord | Identified Vortex Catalyst Activator 23318 | -5/Warlord | Attached Meta Core, gained temporary slots: Propulsion, Utility, Weapon 23324 | -5/Warlord | Found Prototype Processor 23325 | -5/Warlord | Identified Spectral Analyzer 23326 | -5/Warlord | Identified Enh. Scrap Shield 23339 | -5/Warlord | Found Exp. Targeting Computer 23366 | -5/Warlord | Found Wardrone Bay 23547 | -5/Warlord | Warlord forces counterattacked 23581 | -5/Warlord | Spotted Striker 23585 | -5/Warlord | Build established: Mutant 23602 | -5/Warlord | P-80 Master assimilated allied H8-0JU(g) 23643 | -5/Warlord | Lost 7 allies 23667 | -5/Warlord | Spotted Executioner 23673 | -5/Warlord | P-70 Sage assimilated allied 3A-WNQ(g) 23716 | -5/Warlord | Spotted Striker 23730 | -5/Warlord | Spotted Executioner 23743 | -5/Warlord | Tech Extrapolator generated special schematic: Heat Bomb Trap 23762 | -5/Warlord | Destroyed Striker 23775 | -5/Warlord | Lost 31 allies 23835 | -5/Warlord | Rebuked by Warlord 23855 | -5/Warlord | Lost 3 allies 23872 | -5/Warlord | Warlord base infiltrated, sounded retreat 23873 | -5/Warlord | Enhanced Grunt warped into view 23873 | -5/Warlord | Enhanced Grunt warped into view 23873 | -5/Warlord | Enhanced Grunt warped into view 23873 | -5/Warlord | Enhanced Demolisher warped into view 23873 | -5/Warlord | Enhanced Demolisher warped into view 23873 | -5/Warlord | Enhanced Demolisher warped into view 23920 | -5/Warlord | Build established: Hacker-Mutant 23928 | -5/Warlord | Lost 3 allies 23955 | -5/Warlord | Spotted Executioner 23985 | -5/Warlord | Spotted Executioner 24010 | -5/Warlord | Entered Proximity Caves 24015 | -4/Proximity Caves | Lost 5 allies 24112 | -4/Proximity Caves | Spotter reported a threat 24254 | -4/Proximity Caves | Learned Research emergency access door positions 24262 | -4/Proximity Caves | Spotter reported a threat 24335 | -4/Proximity Caves | Learned location of 1 exit from Proximity Caves 24417 | -4/Proximity Caves | Spotted B-86 Titan 24434 | -4/Proximity Caves | Spotter reported a threat 24480 | -4/Proximity Caves | Entered Factory 24480 | -4/Factory | Evolved 2 slots: Utility x2 24481 | -4/Factory | Identified exit to Extension 24482 | -4/Factory | Identified exit to Research 24483 | -4/Factory | Loaded intel: 122 trap records 24484 | -4/Factory | Loaded intel: 28 terminal locations 24730 | -4/Factory | Search patrols dispatched 24791 | -4/Factory | Repaired Enh. Coil Gun 25041 | -4/Factory | Loaded intel: 8 recycling unit locations 25041 | -4/Factory | Learned location of Protoforge (-3) 25100 | -4/Factory | Build established: Hacker-Skirmisher 25208 | -4/Factory | Tech Extrapolator generated special schematic: Energy Deflector 25409 | -4/Factory | Entered Extension 25427 | -4/Extension | Tech Extrapolator generated special schematic: Active Sensor Spoofer 25613 | -4/Extension | Rescued A7 25724 | -4/Extension | Rescued a captive Derelict 25761 | -4/Extension | Attached CPS modules to A7 25807 | -4/Extension | Lost 4 allies 25828 | -4/Extension | Rescued a captive Derelict 25830 | -4/Extension | Rescued a captive Derelict 26089 | -4/Extension | Build established: Hacker-Mutant 26169 | -4/Extension | Spotted B-86 Titan 26202 | -4/Extension | Allies destroyed B-86 Titan 26207 | -4/Extension | Spotted B-86 Titan 26248 | -4/Extension | Allies destroyed B-86 Titan 26419 | -4/Extension | Rescued a captive Derelict 26466 | -4/Extension | Rescued a captive Derelict 26578 | -4/Extension | Build established: Hacker-Skirmisher 26632 | -4/Extension | Energy Cycler disabled 26698 | -4/Extension | Discovered exit to Research (range 10) 26701 | -4/Extension | Discovered new exit (range 6) 26756 | -4/Extension | Extracted ID and sensor layout for unrecognized location from A7's data core 26760 | -4/Extension | Found Med. Regenerative Plating 26777 | -4/Extension | Lost 4 allies 26777 | -4/Extension | Identified exit to Cetus 26781 | -4/Extension | Entered Cetus 26781 | -4/Cetus | Accompanied by 3 allies 26792 | -4/Cetus | Spotted Cetus Guard 26792 | -4/Cetus | Spotted Cetus Guard 26795 | -4/Cetus | Spotted Cetus Guard 26797 | -4/Cetus | Spotted Cetus Guard 26800 | -4/Cetus | Allies destroyed Cetus Guard 26811 | -4/Cetus | Destroyed Cetus Guard 26828 | -4/Cetus | Destroyed Cetus Guard 26838 | -4/Cetus | Destroyed Cetus Guard 26840 | -4/Cetus | Lost 3 allies 26984 | -4/Cetus | Discovered new exit (range 24) 27269 | -4/Cetus | Spotted Cetus Guard 27269 | -4/Cetus | Spotted Cetus Guard 27270 | -4/Cetus | Discovered exit to Research (range 26) 27271 | -4/Cetus | Spotted Cetus Guard 27272 | -4/Cetus | Spotted Cetus Guard 27276 | -4/Cetus | Allies destroyed Cetus Guard 27291 | -4/Cetus | Allies destroyed Cetus Guard 27298 | -4/Cetus | Build established: Mutant 27305 | -4/Cetus | Allies destroyed Cetus Guard 27307 | -4/Cetus | Allies destroyed Cetus Guard 27372 | -4/Cetus | Met Revision 17 27447 | -4/Cetus | Lrg. Botcube activated 27479 | -4/Cetus | Lrg. Botcube completed mutation into treaded form, armed with 4 guns 27531 | -4/Cetus | Security sweep announced 27532 | -4/Cetus | Identified exit to Archives 27562 | -4/Cetus | Entered Archives 27562 | -4/Archives | Accompanied by 1 ally 27650 | -4/Archives | Discovered new exit (range 23) 27740 | -4/Archives | Discovered exit to Research (range 21) 27746 | -4/Archives | Discovered new exit (range 13) 27774 | -4/Archives | Identified exit to Hub_04(d) 27818 | -4/Archives | Build established: Scavenger-Mutant 53168 | -4/Archives | Attached CPS modules to Large Mutated Botcube 53252 | -4/Archives | Entered Hub_04(d) 53252 | -4/Hub_04(d) | Accompanied by 1 ally 53470 | -4/Hub_04(d) | Build established: Scavenger-Skirmisher 53533 | -4/Hub_04(d) | Discovered exit to Research (range 7) 53672 | -4/Hub_04(d) | Discovered exit to Research (range 8) 53948 | -4/Hub_04(d) | Network Hub disabled 53990 | -4/Hub_04(d) | Network Hub disabled 53990 | -4/Hub_04(d) | Spotted Lightning 53990 | -4/Hub_04(d) | Spotted Lightning 53990 | -4/Hub_04(d) | Spotted Lightning 53993 | -4/Hub_04(d) | Entered Research 53993 | -3/Research | Accompanied by 1 ally 53993 | -3/Research | Evolved 2 slots: Power x1, Propulsion x1 53994 | -3/Research | Identified exit to Quarantine 53997 | -3/Research | Loaded intel: 3 garrison access locations 54193 | -3/Research | Revision forces began assault on 0b10 54197 | -3/Research | Met up with Revision 17++ 54246 | -3/Research | Found Exp. ECM Suite 54299 | -3/Research | Tech Extrapolator generated special schematic: Wartreads 54347 | -3/Research | Build established: Hacker-Skirmisher 54693 | -3/Research | Research terminal network offline 54929 | -3/Research | Spotted B-86 Titan 55109 | -3/Research | Discovered new exit (range 7) 55136 | -3/Research | Identified exit to Armory 55186 | -3/Research | Fabricated H-77 Assassin (x2) 55223 | -3/Research | Fabricated CPS Tube (x1) 55236 | -3/Research | Spotted Striker 55260 | -3/Research | Attached CPS modules to Revision 17++ 55283 | -3/Research | Build established: Scavenger-Mutant 55287 | -3/Research | Spotted Striker 55288 | -3/Research | Loaded intel: 4 recycling unit locations 55289 | -3/Research | Spotted Striker 55296 | -3/Research | Allies destroyed Striker 55300 | -3/Research | Allies destroyed Striker 55498 | -3/Research | Spotted Striker 55503 | -3/Research | Destroyed Striker 55614 | -3/Research | Spotted Striker 55619 | -3/Research | Entered Quarantine 55619 | -3/Quarantine | Accompanied by 1 ally 55677 | -3/Quarantine | Repaired Adv. Remote Force Field? 55787 | -3/Quarantine | Found Alien Artifact 55787 | -3/Quarantine | Identified Core Reset Matrix 55787 | -3/Quarantine | Used Core Reset Matrix 55791 | -3/Quarantine | Detected hypermatrix surge 55791 | -3/Quarantine | Sensed 14 artifacts in vicinity 55807 | -3/Quarantine | Found Sigix Broadsword 55913 | -3/Quarantine | Found Matter Drive 56080 | -3/Quarantine | Tech Extrapolator generated special schematic: Wartreads 56152 | -3/Quarantine | Discovered new exit (range 6) 56183 | -3/Quarantine | Found Hpw. Transdimensional Reconstructor 56185 | -3/Quarantine | Found Transdimensional Reconstructor 56197 | -3/Quarantine | Found Dimensional Node Initializer 56375 | -3/Quarantine | Tech Extrapolator generated special schematic: Deep Structural Scanner 56424 | -3/Quarantine | Found Subatomic Replicator 56425 | -3/Quarantine | Used Subatomic Replicator to create Supercharged TR 56488 | -3/Quarantine | Build established: Scavenger-Assassin 56670 | -3/Quarantine | Crushed by falling debris 56724 | -3/Quarantine | Lost 4 parts (4u) 56762 | -3/Quarantine | Spotted Fortress 56843 | -3/Quarantine | Discovered new exit (range 5) 56843 | -3/Quarantine | Discovered new exit (range 6) 56847 | -3/Quarantine | Identified exit to Section 7 56850 | -3/Quarantine | Identified exit to Protoforge 56950 | -3/Quarantine | Build established: Scavenger-Mutant 57172 | -3/Quarantine | Entered Protoforge 57173 | -3/Protoforge | Sensed 2 artifacts in vicinity 57343 | -3/Protoforge | Superfortress began startup sequence 57482 | -3/Protoforge | Spotted EXE-6 57482 | -3/Protoforge | Spotted EXE-6 57485 | -3/Protoforge | Allies destroyed EXE-6 57487 | -3/Protoforge | Allies destroyed EXE-6 57494 | -3/Protoforge | Found Cep. XC Strikerail 57497 | -3/Protoforge | Found Exp. Kinecellerator 57498 | -3/Protoforge | Spotted SKR-2 57500 | -3/Protoforge | Found Exp. Armor Integrity Analyzer 57505 | -3/Protoforge | Spotted SKR-2 57505 | -3/Protoforge | Spotted SKR-2 57532 | -3/Protoforge | Allies destroyed SKR-2 57532 | -3/Protoforge | Destroyed SKR-2 57533 | -3/Protoforge | Allies destroyed SKR-2 57535 | -3/Protoforge | Found Exp. Core Analyzer 57601 | -3/Protoforge | Initialized slip node 57615 | -3/Protoforge | UFD initiated attack on Protoforge (Readiness: Adequate) 57615 | -3/Protoforge | Loaded intel: 3 recycling unit locations 57630 | -3/Protoforge | Spotted EXE-6 57632 | -3/Protoforge | Spotted EXE-6 57638 | -3/Protoforge | Allies destroyed EXE-6 57651 | -3/Protoforge | Optimus greeted in Protoforge 57728 | -3/Protoforge | Found Cep. Chromion Battery 57747 | -3/Protoforge | Spotted Decapitator 57756 | -3/Protoforge | Allies destroyed Decapitator 57760 | -3/Protoforge | Spotted Hotshot 57762 | -3/Protoforge | Allies destroyed Hotshot 57766 | -3/Protoforge | Scanned by Researcher 57767 | -3/Protoforge | Warped through subspace to slip node 57774 | -3/Protoforge | Spotted Decapitator 57779 | -3/Protoforge | Spotted Decapitator 57792 | -3/Protoforge | Spotted Executioner 57798 | -3/Protoforge | System corruption reached 10% 57804 | -3/Protoforge | Spotted Decapitator 57819 | -3/Protoforge | Spotted Executioner 57822 | -3/Protoforge | Spotted Immortal 57822 | -3/Protoforge | Spotted Striker 57826 | -3/Protoforge | Spotted Executioner 57829 | -3/Protoforge | Spotted Decapitator 57830 | -3/Protoforge | Scrapoid reinforcements arrived 57835 | -3/Protoforge | Spotted Immortal 57837 | -3/Protoforge | Spotted Executioner 57842 | -3/Protoforge | Allies destroyed Executioner 57844 | -3/Protoforge | Spotted Hotshot 57847 | -3/Protoforge | Spotted Striker 57848 | -3/Protoforge | Allies destroyed Superfortress 57848 | -3/Protoforge | Destroyed Hotshot 57865 | -3/Protoforge | Found Exp. Core Analyzer 57866 | -3/Protoforge | Allies destroyed Immortal 57868 | -3/Protoforge | Found Cep. Miniperforator 57871 | -3/Protoforge | Found Cep. Zero-point Core 57886 | -3/Protoforge | Found Cep. Arcsight Missile Launcher 57892 | -3/Protoforge | Lost 35 allies 57898 | -3/Protoforge | Found Cep. Antimissile System 57908 | -3/Protoforge | Found Exp. Cloaking Device 57943 | -3/Protoforge | Spotted Striker 57945 | -3/Protoforge | Spotted Striker 57948 | -3/Protoforge | Spotted Executioner 57949 | -3/Protoforge | Spotted Executioner 57951 | -3/Protoforge | Spotted Executioner 57954 | -3/Protoforge | Spotted Striker 57958 | -3/Protoforge | Destroyed Executioner 57963 | -3/Protoforge | Allies destroyed Striker 57967 | -3/Protoforge | Allies destroyed Striker 58013 | -3/Protoforge | Lost 15 allies 58079 | -3/Protoforge | Spotted Striker 58087 | -3/Protoforge | Spotted Immortal 58106 | -3/Protoforge | Spotted Executioner 58112 | -3/Protoforge | Spotted Immortal 58186 | -3/Protoforge | Lost 7 allies 58190 | -3/Protoforge | Spotted Executioner 58203 | -3/Protoforge | Spotted Striker 58234 | -3/Protoforge | Destroyed Striker 58234 | -3/Protoforge | UFD reported confirmed Drillbomb installation 58276 | -3/Protoforge | UFD reported confirmed Drillbomb installation 58354 | -3/Protoforge | Spotted Immortal 58354 | -3/Protoforge | Spotted Executioner 58356 | -3/Protoforge | Spotted Immortal 58358 | -3/Protoforge | Spotted Immortal 58359 | -3/Protoforge | Spotted Hotshot 58362 | -3/Protoforge | Destroyed Executioner 58362 | -3/Protoforge | Spotted Executioner 58368 | -3/Protoforge | Warped through subspace 58368 | -3/Protoforge | Spotted Executioner 58390 | -3/Protoforge | Spotted Executioner 58393 | -3/Protoforge | Destroyed Executioner 58405 | -3/Protoforge | Lost 6 allies 58414 | -3/Protoforge | Destroyed 7 combat bots 58415 | -3/Protoforge | Spotted Striker 58418 | -3/Protoforge | Spotted Striker 58418 | -3/Protoforge | Destroyed Striker 58430 | -3/Protoforge | Destroyed Striker 58476 | -3/Protoforge | Build established: Scavenger-Skirmisher 58476 | -3/Protoforge | Spotted Decapitator 58477 | -3/Protoforge | Spotted Decapitator 58477 | -3/Protoforge | Spotted Decapitator 58480 | -3/Protoforge | Destroyed Decapitator 58480 | -3/Protoforge | Destroyed Decapitator 58580 | -3/Protoforge | Spotted Hotshot 58585 | -3/Protoforge | Spotted Hotshot 58586 | -3/Protoforge | Destroyed Hotshot 58586 | -3/Protoforge | Spotted Hotshot 58590 | -3/Protoforge | Destroyed Hotshot 58592 | -3/Protoforge | Destroyed Hotshot 58614 | -3/Protoforge | Spotted Hotshot 58618 | -3/Protoforge | Spotted Hotshot 58636 | -3/Protoforge | Found Crosscalibrator 58641 | -3/Protoforge | Found Cep. Antimissile System 58647 | -3/Protoforge | Spotted Immortal 58647 | -3/Protoforge | Spotted Immortal 58786 | -3/Protoforge | Spotted Executioner 58833 | -3/Protoforge | Spotted Striker 58841 | -3/Protoforge | Spotted Striker 58841 | -3/Protoforge | Destroyed Striker 58858 | -3/Protoforge | Spotted Executioner 58881 | -3/Protoforge | Spotted Executioner 58883 | -3/Protoforge | Destroyed Executioner 58885 | -3/Protoforge | Lost 4 allies 58896 | -3/Protoforge | Spotted Executioner 58898 | -3/Protoforge | Spotted Striker 58900 | -3/Protoforge | Spotted Executioner 58901 | -3/Protoforge | Destroyed Executioner 58911 | -3/Protoforge | Spotted Executioner 58913 | -3/Protoforge | Spotted Executioner 58923 | -3/Protoforge | Destroyed Executioner 58926 | -3/Protoforge | Destroyed Executioner 58947 | -3/Protoforge | Destroyed 8 combat bots 58952 | -3/Protoforge | Lost 6 allies 59010 | -3/Protoforge | Destroyed Hotshot 59014 | -3/Protoforge | Destroyed Hotshot 59084 | -3/Protoforge | Spotted Decapitator 59084 | -3/Protoforge | Spotted Decapitator 59084 | -3/Protoforge | Spotted Decapitator 59084 | -3/Protoforge | Spotted Decapitator 59147 | -3/Protoforge | Destroyed Immortal 59359 | -3/Protoforge | Found Cep. RG22 Armor 59362 | -3/Protoforge | Found Cep. Reaction Jets 59364 | -3/Protoforge | Found Faulty Cep. Reaction Jets 59368 | -3/Protoforge | Found Faulty Cep. Energy Mantle 59370 | -3/Protoforge | Found Faulty Cep. Energy Mantle 59373 | -3/Protoforge | Found Cep. Hardlight Director 59515 | -3/Protoforge | Build established: Scavenger-Mutant 59543 | -3/Protoforge | Found Faulty Cep. XC Strikerail 59546 | -3/Protoforge | Found Cep. XC Strikerail 59549 | -3/Protoforge | Found Cep. XC Strikerail 59628 | -3/Protoforge | Spotted Executioner 59743 | -3/Protoforge | Spotted Executioner 59803 | -3/Protoforge | Destroyed 11 combat bots 59870 | -3/Protoforge | Forge Plexus network access discovered 59928 | -3/Protoforge | Fabricated Mak. Trap Scanner (x1) 59936 | -3/Protoforge | Spotted Executioner 59973 | -3/Protoforge | Spotted Executioner 59980 | -3/Protoforge | Destroyed Executioner 59986 | -3/Protoforge | Core integrity fell below 50% 59986 | -3/Protoforge | Destroyed Executioner 60007 | -3/Protoforge | Destroyed 8 combat bots 60029 | -3/Protoforge | Spotted Striker 60049 | -3/Protoforge | Spotted Executioner 60071 | -3/Protoforge | Spotted Executioner 60072 | -3/Protoforge | Spotted Striker 60076 | -3/Protoforge | Spotted Executioner 60077 | -3/Protoforge | Destroyed Executioner 60077 | -3/Protoforge | Destroyed Striker 60077 | -3/Protoforge | Spotted Executioner 60079 | -3/Protoforge | Destroyed Executioner 60079 | -3/Protoforge | Destroyed Executioner 60103 | -3/Protoforge | Destroyed 13 combat bots 60104 | -3/Protoforge | Lost 3 allies 60168 | -3/Protoforge | Fabricated Deep Structural Scanner (x1) 60218 | -3/Protoforge | Spotted Striker 60227 | -3/Protoforge | Spotted Striker 60230 | -3/Protoforge | Build established: Scavenger-Skirmisher 60234 | -3/Protoforge | Destroyed Striker 60241 | -3/Protoforge | Destroyed Striker 60301 | -3/Protoforge | Destroyed 12 combat bots 60382 | -3/Protoforge | Destroyed 8 combat bots 60434 | -3/Protoforge | Spotted Striker 60437 | -3/Protoforge | Spotted Striker 60448 | -3/Protoforge | Destroyed Striker 60455 | -3/Protoforge | Destroyed Striker 60464 | -3/Protoforge | Spotted Executioner 60466 | -3/Protoforge | Spotted Striker 60479 | -3/Protoforge | Destroyed Striker 60543 | -3/Protoforge | Destroyed Executioner 60590 | -3/Protoforge | Core integrity fell below 20% 60597 | -3/Protoforge | P-80 Master assimilated allied 03FEU-D 60613 | -3/Protoforge | Spotted Striker 60621 | -3/Protoforge | Spotted Executioner 60630 | -3/Protoforge | System corruption reached 30% 60633 | -3/Protoforge | Spotted Striker 60641 | -3/Protoforge | Destroyed by H-77 Assassin with Coil Gun Last Messages --------------- 60635_ N-04 Retriever collects Railgun. 60635_ N-04 Retriever collects Ovr. Huge Scrapsphere. 60635_ N-04 Retriever collects Neutrino Core. 60635_ Slug penetrates 03F32-K. 60635_ 03F32-K suffers critical hit (Destroy). 60636_ Adv. Hacking Suite destroyed. 60636_ N-04 Retriever collects Helical Railgun. 60637_ N-04 Retriever collects Enh. Biometal Leg. 60637_ Slug penetrates 03F32-K. 60638_ Penetrated by Slug. 60638_ Cep. Reaction Jets destroyed. 60640_ N-04 Retriever collects Mak. Salvage Targeting Computer. 60640_ N-04 Retriever collects Mak. Coolant Network. 60641_ 03F32-K cannibalizes Adv. Heat Sink to repair Mak. Microdissipator Network. 60641_ Penetrated by Slug. Map ----- +----------------------------------------------------+ | % ######### " " "" """" "" % | | ######### "" """% | | # ## "" """ % | | " ## """"" " """" | | # """## " " " % | | """" # """## " " "" """" " % | | """""% # """## "%""" "" "" | | """ " # """## " "" " """"""" | | + """## """" h """""""""" | | # """## %"""" " """"""""""" | | T""# # """## " """""""""""" | | """# # ## %p"" " %""""""""""""" | | #### # ## " pgg """""""""""""" | | #### # ## % p "si" """"""""""""""" | | ??## # ## """"" % " """""""""""""""" | | ??## #"####""# "" " % n """""""""""""""" | | ??## #"+"""##"""# "" " % """""""""""""""" | | #### ## ## % """"""""""""""""" | | #### ## ## " " """"""""""""""""" | | "# ## % ## % """"""""""""""""" | | ??# %" ## %% % % """"""""""""""""" | | ??# %" "" ## """"""""""""""""" | | # " """%## """"""""""""""""" | | + % """"%!# n "% """"""""""""""""" | | ""*%[# "%""""""""""""""""" | | % % %!!# %%%@ % %%""""""""""""""""" | | % &%"% # ## # ### %% %% " % """""""""""""""" | | %%% % % % SE %%% n%[ % % """""""""""""""" | | % %%% %%%=%=%%ss% n % """""""""""""""" | | &%% *!=E%% %s%% % % %%%""""""""""""""" | | %# % != #% %% %&%%%% %% %"""""""""""""" | | "% % # # ## ### %%%%%% % % % """"""""""""" | | " ## ## # # %%%%%%%%%%" %%% %%%"""""""""""" | | "!## # [ ]#% %%%%%%%%%%%& %% % """"""""""" | | "### ### ??# %%%|%%%%&%%%%%% % =%"""""""""" | | "### #?# # ????# %%%%%%% %%%% %%%%% n!%""""""" | | #### ?# ?# ?????# %!=A % %%%%%%%%%%%%%n%%% % %% | | #### # ??##?????# [% %%%%%%%%%%%%%%%%%%% % | | #??## ??????????# % %% % %%% %%%% %%%%%% | | #???????????????# % % % % % %% % %%% " | | #???????????????# " "% "% % %%m ""%% | | #???????????????# % % %" %" "%% % | | #???????????????# " " "" % % | | #???????????????# "" | | #???????????????# " "" %" | | #????############ " " "" " | | #????############ " %" % | | #????############ "" "% | | ################# "" " | | ######### ## "" % "" " | +----------------------------------------------------+ Best States ------------- Heat Dissipation 85 Energy Generation 45 Energy Capacity 1100 Matter Stores 300 Matter Capacity 300 Sight Range 24 Robot Scan Range 20 Terrain Scan Density 10 Jamming Range 16 Cloak Strength 4 EM Shielding 3 Armor Coverage 800 Resistance: KI 30 Resistance: TH 10 Point Defense Rating 960 Phase Shifting 10 Evasion (%) 90 Targeting Accuracy 12 Core Analysis 12 Recoil Reduction 4 Kinecelleration 66 Offensive Hacking 38 Defensive Hacking 14 Authchip Count 7 Item Schematics ----------------- Mak. Power Source | -3/Quarantine | Extrapolated Spk. Treads | -3/Quarantine | Extrapolated Spk. Medium Treads | -3/Quarantine | Extrapolated Wartreads | -3/Quarantine | Extrapolated Spk. Heavy Treads | -3/Quarantine | Extrapolated Mak. Leg | -3/Quarantine | Extrapolated Mak. Coolant Network | -3/Quarantine | Extrapolated Deep Structural Scanner | -3/Quarantine | Extrapolated Mak. Trap Scanner | -3/Quarantine | Extrapolated Mak. Sensor Array | -3/Quarantine | Extrapolated Mak. Terrain Scan Processor | -3/Quarantine | Extrapolated 0b10 Decoder Chip [Generic] | -3/Quarantine | Extrapolated 0b10 Decoder Chip [Scout] | -3/Quarantine | Extrapolated 0b10 Decoder Chip [Skirmisher] | -3/Quarantine | Extrapolated Mak. Salvage Targeting Computer | -3/Quarantine | Extrapolated Mak. Targeting Computer | -3/Quarantine | Extrapolated Tactical Coordination Suite | -3/Quarantine | Extrapolated Exp. Focal Shield | -3/Protoforge | Archive Robot Schematics ------------------ None Fabricated ------------ H-77 Assassin | x2 | -3/Research | Preloaded CPS Tube | x1 | -3/Research Mak. Trap Scanner | x1 | -3/Protoforge Deep Structural Scanner | x1 | -3/Protoforge Repaired ---------- Enh. Coil Gun | 18% | -4/Factory Adv. Remote Force Field | 8% | -3/Quarantine Studied --------- Myomer Leg | -3/Quarantine | Hacked Shield Leg | -3/Quarantine | Hacked Alien Tech Used ----------------- Core Reset Matrix Sigix Broadsword Matter Drive Subatomic Replicator Dimensional Node Initializer Supercharged TR High-powered Transdimensional Reconstructor Achievements -------------- Chop Chop Dominance Asserted Challenges ------------ None Game ------ Seed GaussHeavyRailgun Manual? 0 Play Time 08:05:57 Cumulative 859.2 hours Start 2026.08.07 @ 17:35:52 End 2026.08.08 @ 22:33:08 Sessions 23 Manual Loads 0 Difficulty Rogue Special Mode None Game No. 304 Rogue 300 Adventurer 4 Explorer 0 Win Type - Total 23 Types 9/3/7/0/0/0/2/2/0/0 Lore% 90 Gallery% 81 Achievement% 66 Wizard Run 0 Options --------- Layout 1 ASCII 0 Keyboard 0 Movement Numpad Keybinds 0 Fullscreen 1 Font 40/SmallcapsGlow Map View 50x40 Zoom Use 0% Tactical HUD 1 Map Filters NONE Filters NONE Steam 1 RUN: bf70bce2-aab6-42d7-ada2-c514c07b3621